[Event "Early-Titled-Tuesday-Blitz-July-09-2024"]
[Site "Chess.com"]
[Date "2024.07.09"]
[Round "9"]
[White "KNVB"]
[Black "ACollins05"]
[Result "1/2-1/2"]
[WhiteElo "2654"]
[BlackElo "2499"]
[TimeControl "180+1"]
[EndTime "9:45:30 PDT"]
[Termination "Game drawn - insufficient material"]

1. d4 {[%clk 0:03:00.9]} 1... b5 {[%clk 0:02:58.8]} 2. e4 {[%clk 0:02:51.4]}
2... a6 {[%clk 0:02:57.4]} 3. c4 {[%clk 0:02:44.1]} 3... Bb7 {[%clk 0:02:57.3]}
4. cxb5 {[%clk 0:02:18.6]} 4... Bxe4 {[%clk 0:02:54.6]} 5. bxa6 {[%clk
0:02:19.2]} 5... Nf6 {[%clk 0:02:50.4]} 6. Nc3 {[%clk 0:02:18.8]} 6... Nxa6
{[%clk 0:02:46.5]} 7. Nxe4 {[%clk 0:00:56.5]} 7... Nxe4 {[%clk 0:02:46.1]} 8.
Bxa6 {[%clk 0:00:52.7]} 8... Rxa6 {[%clk 0:02:45.6]} 9. Qd3 {[%clk 0:00:53.3]}
9... Qa8 {[%clk 0:02:45]} 10. Nf3 {[%clk 0:00:38.5]} 10... e6 {[%clk 0:02:42.4]}
11. O-O {[%clk 0:00:38.7]} 11... Be7 {[%clk 0:02:41.7]} 12. Re1 {[%clk
0:00:26.8]} 12... d5 {[%clk 0:02:36.9]} 13. a3 {[%clk 0:00:17.2]} 13... O-O
{[%clk 0:02:36.6]} 14. Be3 {[%clk 0:00:07.5]} 14... Rb8 {[%clk 0:02:34.8]} 15.
Re2 {[%clk 0:00:01.9]} 15... Rab6 {[%clk 0:02:30.3]} 16. Ra2 {[%clk 0:00:01.7]}
16... Rb3 {[%clk 0:02:29.7]} 17. Qd1 {[%clk 0:00:02.1]} 17... Qa6 {[%clk
0:02:20.2]} 18. Rc2 {[%clk 0:00:02.2]} 18... Bd6 {[%clk 0:02:03.7]} 19. g3
{[%clk 0:00:02.6]} 19... R8b6 {[%clk 0:01:51.3]} 20. Kg2 {[%clk 0:00:02.8]}
20... Qb7 {[%clk 0:01:51]} 21. Qe2 {[%clk 0:00:03.3]} 21... h6 {[%clk
0:01:42.1]} 22. Bc1 {[%clk 0:00:03.2]} 22... Be7 {[%clk 0:01:39.1]} 23. a4
{[%clk 0:00:03.4]} 23... Bf6 {[%clk 0:01:38.2]} 24. a5 {[%clk 0:00:03.5]} 24...
Ra6 {[%clk 0:01:37.5]} 25. Bf4 {[%clk 0:00:03.4]} 25... c6 {[%clk 0:01:33.1]}
26. Nd2 {[%clk 0:00:02]} 26... Nxd2 {[%clk 0:01:30.8]} 27. Qxd2 {[%clk
0:00:02.3]} 27... Rb4 {[%clk 0:01:26.9]} 28. Ra3 {[%clk 0:00:01.1]} 28... Rxd4
{[%clk 0:01:23.5]} 29. Qe2 {[%clk 0:00:01.6]} 29... Rb4 {[%clk 0:01:17.2]} 30.
Be3 {[%clk 0:00:01.8]} 30... Rxb2 {[%clk 0:01:11.3]} 31. Rxb2 {[%clk 0:00:01.5]}
31... Qxb2 {[%clk 0:01:12.2]} 32. Qxb2 {[%clk 0:00:01.6]} 32... Bxb2 {[%clk
0:01:13.1]} 33. Rb3 {[%clk 0:00:02]} 33... d4 {[%clk 0:01:07]} 34. Bd2 {[%clk
0:00:02.5]} 34... Bc3 {[%clk 0:01:06.1]} 35. Bxc3 {[%clk 0:00:02.7]} 35... dxc3
{[%clk 0:01:05.9]} 36. Rxc3 {[%clk 0:00:03.6]} 36... Kf8 {[%clk 0:00:57.3]} 37.
Kf3 {[%clk 0:00:03.7]} 37... Ke7 {[%clk 0:00:57.5]} 38. Ke4 {[%clk 0:00:04.5]}
38... Kd6 {[%clk 0:00:57.9]} 39. Ra3 {[%clk 0:00:05.3]} 39... Kc5 {[%clk
0:00:57.5]} 40. Ke5 {[%clk 0:00:05.9]} 40... Kb4 {[%clk 0:00:57.1]} 41. Rf3
{[%clk 0:00:06.2]} 41... Rxa5+ {[%clk 0:00:56.1]} 42. Kd6 {[%clk 0:00:07.1]}
42... Rf5 {[%clk 0:00:55.8]} 43. Rxf5 {[%clk 0:00:06.8]} 43... exf5 {[%clk
0:00:56.1]} 44. Kxc6 {[%clk 0:00:07.7]} 44... Kc3 {[%clk 0:00:56.2]} 45. Kd6
{[%clk 0:00:06.2]} 45... Kd3 {[%clk 0:00:56.6]} 46. Ke7 {[%clk 0:00:05.3]} 46...
Ke2 {[%clk 0:00:57.1]} 47. Kxf7 {[%clk 0:00:05.9]} 47... Kxf2 {[%clk 0:00:57.6]}
48. Kxg7 {[%clk 0:00:06.6]} 48... Kg2 {[%clk 0:00:55.9]} 49. Kxh6 {[%clk
0:00:05.9]} 49... Kxh2 {[%clk 0:00:56.2]} 50. Kg5 {[%clk 0:00:06.6]} 50... Kxg3
{[%clk 0:00:56.7]} 51. Kxf5 {[%clk 0:00:07]} 1/2-1/2

[Event "Early-Titled-Tuesday-Blitz-July-09-2024"]
[Site "Chess.com"]
[Date "2024.07.09"]
[Round "9"]
[White "Feegus"]
[Black "tylityli"]
[Result "1/2-1/2"]
[WhiteElo "2593"]
[BlackElo "2395"]
[TimeControl "180+1"]
[EndTime "9:45:31 PDT"]
[Termination "Game drawn by repetition"]

1. d4 {[%clk 0:03:00.9]} 1... Nf6 {[%clk 0:02:58.9]} 2. c4 {[%clk 0:03:00.3]}
2... e6 {[%clk 0:02:59.1]} 3. Nf3 {[%clk 0:03:00.7]} 3... Bb4+ {[%clk
0:02:59.7]} 4. Bd2 {[%clk 0:03:00.3]} 4... Qe7 {[%clk 0:03:00.6]} 5. g3 {[%clk
0:02:59.1]} 5... Nc6 {[%clk 0:03:00.9]} 6. b3 {[%clk 0:02:53.9]} 6... O-O {[%clk
0:03:00.6]} 7. Bg2 {[%clk 0:02:51.1]} 7... a5 {[%clk 0:02:56.8]} 8. O-O {[%clk
0:02:50.3]} 8... Bxd2 {[%clk 0:02:57]} 9. Qxd2 {[%clk 0:02:50.2]} 9... d6 {[%clk
0:02:57.9]} 10. Nc3 {[%clk 0:02:49.5]} 10... h6 {[%clk 0:02:49.5]} 11. Rac1
{[%clk 0:02:48.6]} 11... Rd8 {[%clk 0:02:48.6]} 12. d5 {[%clk 0:02:48.4]} 12...
Ne5 {[%clk 0:02:45.9]} 13. Nd4 {[%clk 0:02:45.9]} 13... Ned7 {[%clk 0:02:38.2]}
14. Ncb5 {[%clk 0:02:43.6]} 14... Nc5 {[%clk 0:02:35.5]} 15. dxe6 {[%clk
0:02:38.3]} 15... fxe6 {[%clk 0:02:30.2]} 16. Rfd1 {[%clk 0:02:26.6]} 16... e5
{[%clk 0:02:27.9]} 17. Nc2 {[%clk 0:02:25.8]} 17... Bf5 {[%clk 0:02:19.1]} 18.
Ne3 {[%clk 0:02:25.5]} 18... Be4 {[%clk 0:02:18.9]} 19. Nd5 {[%clk 0:02:20.2]}
19... Bxd5 {[%clk 0:02:07.8]} 20. cxd5 {[%clk 0:02:15.1]} 20... e4 {[%clk
0:02:06.7]} 21. a3 {[%clk 0:02:12]} 21... Nxb3 {[%clk 0:02:04.3]} 22. Rxc7
{[%clk 0:02:06]} 22... Qxc7 {[%clk 0:02:00.6]} 23. Nxc7 {[%clk 0:02:06.1]} 23...
Nxd2 {[%clk 0:02:00]} 24. Nxa8 {[%clk 0:02:06.1]} 24... Nc4 {[%clk 0:01:48.9]}
25. Nc7 {[%clk 0:02:00.8]} 25... Nxa3 {[%clk 0:01:44.4]} 26. Ra1 {[%clk
0:02:00.3]} 26... Nc4 {[%clk 0:01:26]} 27. Ra4 {[%clk 0:02:00]} 27... Nb6 {[%clk
0:01:04.5]} 28. Rxa5 {[%clk 0:01:57.9]} 28... Rc8 {[%clk 0:01:03.4]} 29. Nb5
{[%clk 0:01:48.6]} 29... Rc5 {[%clk 0:00:53.1]} 30. f3 {[%clk 0:01:26.6]} 30...
Nfxd5 {[%clk 0:00:42.1]} 31. fxe4 {[%clk 0:01:21.3]} 31... Nc3 {[%clk
0:00:39.9]} 32. Ra7 {[%clk 0:01:21.6]} 32... Nxb5 {[%clk 0:00:37.9]} 33. Rxb7
{[%clk 0:01:22.2]} 33... Nc4 {[%clk 0:00:35.4]} 34. Kf2 {[%clk 0:01:20.7]} 34...
Nd4 {[%clk 0:00:20.3]} 35. Bh3 {[%clk 0:01:21.1]} 35... g6 {[%clk 0:00:17.5]}
36. e3 {[%clk 0:01:21.1]} 36... Nc2 {[%clk 0:00:14.8]} 37. Be6+ {[%clk 0:01:21]}
37... Kf8 {[%clk 0:00:13.3]} 38. Rf7+ {[%clk 0:01:15.4]} 38... Ke8 {[%clk
0:00:12.6]} 39. Rg7 {[%clk 0:01:14.8]} 39... g5 {[%clk 0:00:11.1]} 40. Rh7
{[%clk 0:01:10.4]} 40... N2xe3 {[%clk 0:00:07.6]} 41. h3 {[%clk 0:01:01.9]}
41... Re5 {[%clk 0:00:06.3]} 42. Bd5 {[%clk 0:01:02.2]} 42... Nxd5 {[%clk
0:00:05.7]} 43. exd5 {[%clk 0:01:03.1]} 43... Rxd5 {[%clk 0:00:05.8]} 44. Rxh6
{[%clk 0:01:03.8]} 44... Ke7 {[%clk 0:00:06.2]} 45. Kf3 {[%clk 0:01:03.9]} 45...
Ne5+ {[%clk 0:00:05]} 46. Ke4 {[%clk 0:01:02.9]} 46... Rd3 {[%clk 0:00:04.5]}
47. g4 {[%clk 0:01:02.3]} 47... Rf3 {[%clk 0:00:03.9]} 48. Kd5 {[%clk
0:00:57.4]} 48... Rd3+ {[%clk 0:00:03.4]} 49. Ke4 {[%clk 0:00:57.5]} 49... Rf3
{[%clk 0:00:02.7]} 50. Kd5 {[%clk 0:00:57.8]} 50... Rd3+ {[%clk 0:00:02.9]} 51.
Ke4 {[%clk 0:00:58.2]} 1/2-1/2

[Event "Early-Titled-Tuesday-Blitz-July-09-2024"]
[Site "Chess.com"]
[Date "2024.07.09"]
[Round "9"]
[White "Sam_ChessMood"]
[Black "BardArtem"]
[Result "1-0"]
[WhiteElo "2940"]
[BlackElo "2819"]
[TimeControl "180+1"]
[EndTime "9:45:32 PDT"]
[Termination "Sam_ChessMood won on time"]

1. d4 {[%clk 0:02:58.9]} 1... d5 {[%clk 0:02:59.5]} 2. c4 {[%clk 0:02:58.7]}
2... e6 {[%clk 0:03:00.2]} 3. Nc3 {[%clk 0:02:58.5]} 3... Nf6 {[%clk 0:03:00.9]}
4. Nf3 {[%clk 0:02:58.8]} 4... c5 {[%clk 0:03:01]} 5. e3 {[%clk 0:02:58]} 5...
a6 {[%clk 0:02:57.6]} 6. cxd5 {[%clk 0:02:57.4]} 6... exd5 {[%clk 0:02:57.6]} 7.
Bd3 {[%clk 0:02:57.7]} 7... Nc6 {[%clk 0:02:57.6]} 8. O-O {[%clk 0:02:57.6]}
8... cxd4 {[%clk 0:02:54.6]} 9. exd4 {[%clk 0:02:57.1]} 9... h6 {[%clk
0:02:48.9]} 10. Ne5 {[%clk 0:02:40.9]} 10... Be7 {[%clk 0:02:42.2]} 11. Be3
{[%clk 0:02:12.1]} 11... O-O {[%clk 0:02:41.1]} 12. f4 {[%clk 0:02:11.7]} 12...
Bb4 {[%clk 0:02:30.9]} 13. Rc1 {[%clk 0:02:04.6]} 13... Re8 {[%clk 0:02:22.6]}
14. Qf3 {[%clk 0:02:01.9]} 14... Bxc3 {[%clk 0:02:00.6]} 15. Rxc3 {[%clk
0:01:56.5]} 15... Qb6 {[%clk 0:01:53]} 16. Rb3 {[%clk 0:01:20.7]} 16... Qa5
{[%clk 0:01:51.5]} 17. a3 {[%clk 0:01:19]} 17... Qa4 {[%clk 0:01:48.2]} 18. Rc3
{[%clk 0:00:26.7]} 18... Nxd4 {[%clk 0:01:43.8]} 19. Qd1 {[%clk 0:00:21.8]}
19... Qxd1 {[%clk 0:01:40.4]} 20. Rxd1 {[%clk 0:00:22.7]} 20... Nc6 {[%clk
0:01:33.7]} 21. Nxc6 {[%clk 0:00:14.7]} 21... Rxe3 {[%clk 0:01:31.5]} 22. Ne5
{[%clk 0:00:14.4]} 22... d4 {[%clk 0:01:26.5]} 23. Rc4 {[%clk 0:00:14.7]} 23...
Nd5 {[%clk 0:01:01.6]} 24. Rxd4 {[%clk 0:00:14.6]} 24... Be6 {[%clk 0:00:57.7]}
25. Kf2 {[%clk 0:00:14.9]} 25... f6 {[%clk 0:00:43.1]} 26. Nc4 {[%clk 0:00:15]}
26... Rxd3 {[%clk 0:00:23.4]} 27. R1xd3 {[%clk 0:00:15.9]} 27... Rc8 {[%clk
0:00:23.2]} 28. Nd6 {[%clk 0:00:10.3]} 28... Rc5 {[%clk 0:00:20.6]} 29. f5
{[%clk 0:00:10.1]} 29... Nb6 {[%clk 0:00:01]} 30. fxe6 {[%clk 0:00:09.6]} 1-0

[Event "Early-Titled-Tuesday-Blitz-July-09-2024"]
[Site "Chess.com"]
[Date "2024.07.09"]
[Round "9"]
[White "FrenchPlayer2203"]
[Black "Cheer_Down"]
[Result "0-1"]
[WhiteElo "2290"]
[BlackElo "2429"]
[TimeControl "180+1"]
[EndTime "9:45:34 PDT"]
[Termination "Cheer_Down won on time"]

1. d4 {[%clk 0:03:00.9]} 1... d5 {[%clk 0:02:59.6]} 2. c4 {[%clk 0:03:00.1]}
2... e6 {[%clk 0:02:59.3]} 3. Nc3 {[%clk 0:02:59.1]} 3... Nf6 {[%clk 0:02:59.3]}
4. Nf3 {[%clk 0:02:58.7]} 4... Nbd7 {[%clk 0:02:58.7]} 5. Bf4 {[%clk 0:02:57.7]}
5... dxc4 {[%clk 0:02:58.6]} 6. e3 {[%clk 0:02:49]} 6... b5 {[%clk 0:02:58.4]}
7. Nxb5 {[%clk 0:02:42.8]} 7... Bb4+ {[%clk 0:02:58.4]} 8. Nc3 {[%clk
0:02:41.6]} 8... Nd5 {[%clk 0:02:58.1]} 9. Qc2 {[%clk 0:02:30.8]} 9... N7b6
{[%clk 0:02:53.1]} 10. Be2 {[%clk 0:02:24.5]} 10... Nxf4 {[%clk 0:02:47.7]} 11.
exf4 {[%clk 0:02:23.8]} 11... O-O {[%clk 0:02:46.2]} 12. O-O {[%clk 0:02:21.9]}
12... Ba6 {[%clk 0:02:39.2]} 13. Rad1 {[%clk 0:02:17]} 13... Qe7 {[%clk
0:02:36.5]} 14. Ne5 {[%clk 0:02:15.2]} 14... c5 {[%clk 0:02:18.9]} 15. dxc5
{[%clk 0:01:48.4]} 15... Bxc5 {[%clk 0:02:00.1]} 16. Bf3 {[%clk 0:01:43.8]}
16... Rac8 {[%clk 0:01:56.6]} 17. Be4 {[%clk 0:01:20]} 17... g6 {[%clk
0:01:49.3]} 18. Rfe1 {[%clk 0:01:05.2]} 18... Bb7 {[%clk 0:01:33.6]} 19. Bxb7
{[%clk 0:00:56.5]} 19... Qxb7 {[%clk 0:01:33]} 20. Ne4 {[%clk 0:00:56.3]} 20...
Be7 {[%clk 0:01:33.1]} 21. Nf3 {[%clk 0:00:21.9]} 21... Rfd8 {[%clk 0:01:28.8]}
22. Nfg5 {[%clk 0:00:14.9]} 22... Nd5 {[%clk 0:01:21.9]} 23. h4 {[%clk
0:00:08.8]} 23... Nxf4 {[%clk 0:01:19.3]} 24. Qc3 {[%clk 0:00:08.7]} 24... Rxd1
{[%clk 0:01:10.6]} 25. Rxd1 {[%clk 0:00:05.7]} 25... Bxg5 {[%clk 0:01:10.7]} 26.
Qf3 {[%clk 0:00:03.7]} 26... Qxb2 {[%clk 0:00:23.4]} 27. Nxg5 {[%clk 0:00:03.1]}
27... e5 {[%clk 0:00:15.1]} 28. Rd7 {[%clk 0:00:02.2]} 28... Rf8 {[%clk
0:00:10]} 29. Qb7 {[%clk 0:00:01.3]} 29... Qxb7 {[%clk 0:00:08.2]} 30. Rxb7
{[%clk 0:00:01.2]} 30... h6 {[%clk 0:00:07.4]} 0-1

[Event "Early-Titled-Tuesday-Blitz-July-09-2024"]
[Site "Chess.com"]
[Date "2024.07.09"]
[Round "9"]
[White "Aygehovit1992"]
[Black "MatthewG-p4p"]
[Result "0-1"]
[WhiteElo "2782"]
[BlackElo "2922"]
[TimeControl "180+1"]
[EndTime "9:45:35 PDT"]
[Termination "MatthewG-p4p won on time"]

1. e4 {[%clk 0:02:58.5]} 1... e6 {[%clk 0:02:56.7]} 2. d4 {[%clk 0:02:58.7]}
2... d5 {[%clk 0:02:57]} 3. Nc3 {[%clk 0:02:59.6]} 3... Bb4 {[%clk 0:02:57]} 4.
Ne2 {[%clk 0:02:59.7]} 4... Nf6 {[%clk 0:02:50.8]} 5. e5 {[%clk 0:02:57.6]} 5...
Nfd7 {[%clk 0:02:50.1]} 6. a3 {[%clk 0:02:56.6]} 6... Be7 {[%clk 0:02:50.2]} 7.
f4 {[%clk 0:02:55.8]} 7... c5 {[%clk 0:02:50.8]} 8. f5 {[%clk 0:02:55.5]} 8...
cxd4 {[%clk 0:02:33.7]} 9. fxe6 {[%clk 0:02:47.4]} 9... dxc3 {[%clk 0:01:42]}
10. exd7+ {[%clk 0:02:47.3]} 10... Bxd7 {[%clk 0:01:36.3]} 11. Nxc3 {[%clk
0:02:42]} 11... Be6 {[%clk 0:01:25]} 12. Bf4 {[%clk 0:02:29.8]} 12... Nc6 {[%clk
0:01:22.2]} 13. Bb5 {[%clk 0:02:17.2]} 13... O-O {[%clk 0:01:15.1]} 14. Qh5
{[%clk 0:01:34.5]} 14... d4 {[%clk 0:01:04.7]} 15. Bxc6 {[%clk 0:01:08.9]} 15...
dxc3 {[%clk 0:01:04.9]} 16. Be4 {[%clk 0:00:24.9]} 16... g6 {[%clk 0:01:02.8]}
17. Qf3 {[%clk 0:00:25.1]} 17... cxb2 {[%clk 0:00:49.5]} 18. Rb1 {[%clk
0:00:25.7]} 18... Qa5+ {[%clk 0:00:26]} 19. Bd2 {[%clk 0:00:25.8]} 19... Qxa3
{[%clk 0:00:26.1]} 20. O-O {[%clk 0:00:26]} 20... Ba2 {[%clk 0:00:17.6]} 21.
Rbe1 {[%clk 0:00:18.4]} 21... Bc5+ {[%clk 0:00:10.8]} 22. Kh1 {[%clk 0:00:18.4]}
22... Qxf3 {[%clk 0:00:10.6]} 23. Bxf3 {[%clk 0:00:19.3]} 23... Rad8 {[%clk
0:00:04.7]} 24. Bc3 {[%clk 0:00:19.5]} 24... b1=Q {[%clk 0:00:05]} 25. Rxb1
{[%clk 0:00:20]} 25... Bxb1 {[%clk 0:00:05.9]} 26. Rxb1 {[%clk 0:00:20.7]} 26...
b6 {[%clk 0:00:06.8]} 27. h4 {[%clk 0:00:11.5]} 27... Bd4 {[%clk 0:00:06.9]} 28.
Bb4 {[%clk 0:00:10]} 28... Rfe8 {[%clk 0:00:07.1]} 29. Bc6 {[%clk 0:00:02.4]}
29... Rxe5 {[%clk 0:00:07.1]} 30. c3 {[%clk 0:00:01.3]} 30... Bc5 {[%clk
0:00:06.9]} 0-1

[Event "Early-Titled-Tuesday-Blitz-July-09-2024"]
[Site "Chess.com"]
[Date "2024.07.09"]
[Round "9"]
[White "Alex_Sahakyan2006"]
[Black "Flaccidmoves"]
[Result "1-0"]
[WhiteElo "2741"]
[BlackElo "2577"]
[TimeControl "180+1"]
[EndTime "9:45:35 PDT"]
[Termination "Alex_Sahakyan2006 won by checkmate"]

1. e4 {[%clk 0:03:00.9]} 1... e5 {[%clk 0:02:58.9]} 2. Nf3 {[%clk 0:02:59.2]}
2... Nc6 {[%clk 0:02:59.1]} 3. Nc3 {[%clk 0:02:47.3]} 3... Nf6 {[%clk
0:02:58.5]} 4. Bb5 {[%clk 0:02:46.9]} 4... Bd6 {[%clk 0:02:56.7]} 5. O-O {[%clk
0:02:44.9]} 5... O-O {[%clk 0:02:55.7]} 6. d3 {[%clk 0:02:45]} 6... a6 {[%clk
0:02:48.7]} 7. Ba4 {[%clk 0:02:44]} 7... b5 {[%clk 0:02:46.8]} 8. Bb3 {[%clk
0:02:44.3]} 8... Bb7 {[%clk 0:02:46.7]} 9. a4 {[%clk 0:02:44]} 9... b4 {[%clk
0:02:42.9]} 10. Nd5 {[%clk 0:02:43.5]} 10... Nxd5 {[%clk 0:02:39.3]} 11. Bxd5
{[%clk 0:02:44.4]} 11... Qe7 {[%clk 0:02:05.7]} 12. Bg5 {[%clk 0:02:38.6]} 12...
Qe8 {[%clk 0:02:02]} 13. a5 {[%clk 0:02:37.4]} 13... Kh8 {[%clk 0:01:59.8]} 14.
c3 {[%clk 0:02:21.4]} 14... f5 {[%clk 0:01:56.6]} 15. exf5 {[%clk 0:02:12.4]}
15... Rxf5 {[%clk 0:01:54.8]} 16. Be4 {[%clk 0:02:12.2]} 16... Rf8 {[%clk
0:01:52]} 17. Be3 {[%clk 0:02:05.8]} 17... Qh5 {[%clk 0:01:43.1]} 18. h3 {[%clk
0:01:59.1]} 18... Rab8 {[%clk 0:01:37.5]} 19. Nd2 {[%clk 0:01:20.8]} 19... Qxd1
{[%clk 0:01:34]} 20. Rfxd1 {[%clk 0:01:21.7]} 20... Be7 {[%clk 0:01:06.2]} 21.
Nc4 {[%clk 0:01:21.6]} 21... d6 {[%clk 0:01:01.1]} 22. Bd5 {[%clk 0:01:13]}
22... Nd8 {[%clk 0:00:54.2]} 23. Ba7 {[%clk 0:00:55.2]} 23... Bxd5 {[%clk
0:00:51.9]} 24. Bxb8 {[%clk 0:00:55.1]} 24... Ne6 {[%clk 0:00:50]} 25. Ba7
{[%clk 0:00:53.3]} 25... Nf4 {[%clk 0:00:50.1]} 26. Ne3 {[%clk 0:00:50.2]} 26...
Bb7 {[%clk 0:00:45.1]} 27. f3 {[%clk 0:00:41.3]} 27... Ra8 {[%clk 0:00:43]} 28.
Nf5 {[%clk 0:00:41.5]} 28... Bf6 {[%clk 0:00:32.7]} 29. Bf2 {[%clk 0:00:39.5]}
29... bxc3 {[%clk 0:00:28.6]} 30. bxc3 {[%clk 0:00:39.1]} 30... Ne2+ {[%clk
0:00:29.2]} 31. Kf1 {[%clk 0:00:37.6]} 31... Nxc3 {[%clk 0:00:29.8]} 32. Rdc1
{[%clk 0:00:38]} 32... Nb5 {[%clk 0:00:24.6]} 33. Bh4 {[%clk 0:00:34.7]} 33...
g5 {[%clk 0:00:23.4]} 34. Bf2 {[%clk 0:00:33.3]} 34... e4 {[%clk 0:00:23.8]} 35.
dxe4 {[%clk 0:00:20.8]} 35... Bxa1 {[%clk 0:00:23.3]} 36. Rxa1 {[%clk
0:00:21.7]} 36... Rf8 {[%clk 0:00:20.2]} 37. Be3 {[%clk 0:00:21.1]} 37... d5
{[%clk 0:00:17.9]} 38. Bxg5 {[%clk 0:00:17.2]} 38... dxe4 {[%clk 0:00:18]} 39.
g4 {[%clk 0:00:17.7]} 39... exf3 {[%clk 0:00:17.4]} 40. Re1 {[%clk 0:00:17.7]}
40... Bc8 {[%clk 0:00:15.5]} 41. Bf6+ {[%clk 0:00:15.4]} 41... Kg8 {[%clk
0:00:12.8]} 42. Nh6# {[%clk 0:00:15.1]} 1-0

[Event "Early-Titled-Tuesday-Blitz-July-09-2024"]
[Site "Chess.com"]
[Date "2024.07.09"]
[Round "9"]
[White "Irina_Mikhaylova"]
[Black "Mostii"]
[Result "0-1"]
[WhiteElo "2389"]
[BlackElo "2513"]
[TimeControl "180+1"]
[EndTime "9:45:35 PDT"]
[Termination "Mostii won by checkmate"]

1. d4 {[%clk 0:03:00.9]} 1... e6 {[%clk 0:03:00.9]} 2. c4 {[%clk 0:02:58]} 2...
b6 {[%clk 0:03:01.4]} 3. Nf3 {[%clk 0:02:56.4]} 3... Bb7 {[%clk 0:03:02.3]} 4.
a3 {[%clk 0:02:56.1]} 4... Nf6 {[%clk 0:03:02.9]} 5. Nc3 {[%clk 0:02:56.5]} 5...
g6 {[%clk 0:03:02.7]} 6. d5 {[%clk 0:02:55.7]} 6... Bg7 {[%clk 0:03:01.9]} 7. e4
{[%clk 0:02:56]} 7... exd5 {[%clk 0:03:02.4]} 8. exd5 {[%clk 0:02:53.2]} 8...
O-O {[%clk 0:03:03]} 9. Be2 {[%clk 0:02:53.4]} 9... a5 {[%clk 0:03:03.4]} 10.
O-O {[%clk 0:02:51.9]} 10... d6 {[%clk 0:03:02.2]} 11. Bg5 {[%clk 0:02:35.4]}
11... Nbd7 {[%clk 0:03:02.1]} 12. Qc2 {[%clk 0:02:17.5]} 12... h6 {[%clk
0:02:38.7]} 13. Bh4 {[%clk 0:02:17.1]} 13... g5 {[%clk 0:02:39.4]} 14. Bg3
{[%clk 0:02:16.2]} 14... Nh5 {[%clk 0:02:40]} 15. Rad1 {[%clk 0:01:59.2]} 15...
Bc8 {[%clk 0:02:29.4]} 16. Nd4 {[%clk 0:01:57.1]} 16... Nxg3 {[%clk 0:02:28.1]}
17. hxg3 {[%clk 0:01:55.9]} 17... Qf6 {[%clk 0:02:20.2]} 18. g4 {[%clk
0:01:26.5]} 18... Ne5 {[%clk 0:02:03.9]} 19. f3 {[%clk 0:01:20.5]} 19... Bd7
{[%clk 0:01:57]} 20. Rfe1 {[%clk 0:01:16.8]} 20... a4 {[%clk 0:01:56]} 21. Bf1
{[%clk 0:01:16.4]} 21... Rfe8 {[%clk 0:01:53.1]} 22. Ndb5 {[%clk 0:01:06.4]}
22... Bxb5 {[%clk 0:01:44.6]} 23. Nxb5 {[%clk 0:01:05.7]} 23... Re7 {[%clk
0:01:45.3]} 24. Nd4 {[%clk 0:01:01.9]} 24... Rae8 {[%clk 0:01:17.7]} 25. Re4
{[%clk 0:01:00.7]} 25... Nd7 {[%clk 0:01:12.8]} 26. Rxe7 {[%clk 0:00:52.5]}
26... Rxe7 {[%clk 0:01:13.7]} 27. Nf5 {[%clk 0:00:52.4]} 27... Re5 {[%clk
0:00:54.4]} 28. Qxa4 {[%clk 0:00:45.5]} 28... Nc5 {[%clk 0:00:53.6]} 29. Qc2
{[%clk 0:00:44.4]} 29... Re8 {[%clk 0:00:48.3]} 30. b4 {[%clk 0:00:42.6]} 30...
Nd7 {[%clk 0:00:48.6]} 31. Qd2 {[%clk 0:00:38.1]} 31... h5 {[%clk 0:00:44.4]}
32. Re1 {[%clk 0:00:37]} 32... Ne5 {[%clk 0:00:42.2]} 33. Be2 {[%clk 0:00:27.8]}
33... Ng6 {[%clk 0:00:30.7]} 34. gxh5 {[%clk 0:00:21.9]} 34... Nf4 {[%clk
0:00:18.4]} 35. Nxg7 {[%clk 0:00:18.1]} 35... Kxg7 {[%clk 0:00:17.9]} 36. g3
{[%clk 0:00:15.9]} 36... Qd4+ {[%clk 0:00:16.6]} 37. Kh2 {[%clk 0:00:12.6]}
37... Qf2+ {[%clk 0:00:16.7]} 38. Kh1 {[%clk 0:00:12.4]} 38... Qg2# {[%clk
0:00:17.6]} 0-1

[Event "Early-Titled-Tuesday-Blitz-July-09-2024"]
[Site "Chess.com"]
[Date "2024.07.09"]
[Round "9"]
[White "Os55555"]
[Black "ImportedItalianMaple"]
[Result "0-1"]
[WhiteElo "2323"]
[BlackElo "2478"]
[TimeControl "180+1"]
[EndTime "9:45:37 PDT"]
[Termination "ImportedItalianMaple won by checkmate"]

1. b3 {[%clk 0:02:59.7]} 1... d6 {[%clk 0:02:55.7]} 2. Bb2 {[%clk 0:02:58.5]}
2... e5 {[%clk 0:02:56.1]} 3. e3 {[%clk 0:02:56.8]} 3... g6 {[%clk 0:02:55.9]}
4. Nf3 {[%clk 0:02:55.3]} 4... Bg7 {[%clk 0:02:56.1]} 5. Bb5+ {[%clk 0:02:43.7]}
5... c6 {[%clk 0:02:55.4]} 6. Be2 {[%clk 0:02:43.9]} 6... f5 {[%clk 0:02:53.8]}
7. d3 {[%clk 0:02:41.6]} 7... Nf6 {[%clk 0:02:51.5]} 8. Nbd2 {[%clk 0:02:41.3]}
8... O-O {[%clk 0:02:51.1]} 9. O-O {[%clk 0:02:38.8]} 9... h6 {[%clk 0:02:48.9]}
10. h3 {[%clk 0:02:29.1]} 10... g5 {[%clk 0:02:44.6]} 11. Nh2 {[%clk 0:02:22.3]}
11... Qe7 {[%clk 0:02:36.1]} 12. f4 {[%clk 0:01:56.5]} 12... Nbd7 {[%clk
0:02:27.3]} 13. fxg5 {[%clk 0:01:53.9]} 13... hxg5 {[%clk 0:02:27.2]} 14. Ndf3
{[%clk 0:01:51.1]} 14... Nd5 {[%clk 0:02:23]} 15. Qd2 {[%clk 0:01:46.5]} 15...
f4 {[%clk 0:02:22.6]} 16. e4 {[%clk 0:01:39.3]} 16... Ne3 {[%clk 0:02:07]} 17.
Rf2 {[%clk 0:01:38.4]} 17... g4 {[%clk 0:01:59.4]} 18. hxg4 {[%clk 0:01:37.8]}
18... Nf6 {[%clk 0:01:59.1]} 19. Nh4 {[%clk 0:01:20.8]} 19... Nxe4 {[%clk
0:01:53]} 20. dxe4 {[%clk 0:01:16.1]} 20... Qxh4 {[%clk 0:01:52.2]} 21. Qxd6
{[%clk 0:01:07.7]} 21... Nxg4 {[%clk 0:01:24.8]} 22. Bxg4 {[%clk 0:00:59.7]}
22... Bxg4 {[%clk 0:01:25.7]} 23. Bxe5 {[%clk 0:00:53.6]} 23... Rad8 {[%clk
0:01:21]} 24. Qc7 {[%clk 0:00:49]} 24... Rd7 {[%clk 0:01:21.2]} 25. Qa5 {[%clk
0:00:46.6]} 25... Bxe5 {[%clk 0:01:06.6]} 26. Qxe5 {[%clk 0:00:47.5]} 26... Rh7
{[%clk 0:01:06.8]} 27. g3 {[%clk 0:00:37]} 27... Qxg3+ {[%clk 0:00:57.7]} 28.
Rg2 {[%clk 0:00:37.1]} 28... Qe3+ {[%clk 0:00:40.1]} 29. Kf1 {[%clk 0:00:26.7]}
29... Rg7 {[%clk 0:00:11.4]} 30. Rxg4 {[%clk 0:00:19.5]} 30... Qh3+ {[%clk
0:00:11.1]} 31. Ke1 {[%clk 0:00:14.9]} 31... Rxg4 {[%clk 0:00:09.7]} 32. Qe6+
{[%clk 0:00:14.7]} 32... Kh8 {[%clk 0:00:10.3]} 33. Qxg4 {[%clk 0:00:14]} 33...
Qxh2 {[%clk 0:00:10.2]} 34. Rd1 {[%clk 0:00:10.2]} 34... f3 {[%clk 0:00:09]} 35.
Rd7 {[%clk 0:00:07.4]} 35... Qe2# {[%clk 0:00:08.8]} 0-1